bitfinex/quotes_BTCUSD_20241202
["timestamp","ask_amount","ask_price","bid_price","bid_amount"]
[1733129665223,0.02150629,95265.0,95264.0,0.31278721]
[1733129665434,0.02250629,95265.0,95264.0,0.31878721]
[1733129666117,0.02250629,95265.0,95264.0,0.11184521]
[1733129666359,0.02250629,95265.0,95264.0,0.009]
[1733129666815,0.02787276,95265.0,95264.0,0.009]
[1733129668209,0.11067276,95265.0,95264.0,0.009]
[1733129668447,0.11298396,95265.0,95264.0,0.009]
[1733129668910,0.11298396,95265.0,95264.0,0.006]
[1733129669134,0.11298396,95265.0,95264.0,0.009]
[1733129669357,0.11198396,95265.0,95264.0,0.003]
[1733129669578,0.15848396,95265.0,95264.0,0.008]
[1733129669803,0.15048396,95265.0,95264.0,0.008]
[1733129670466,0.15048396,95265.0,95264.0,0.005]
[1733129670923,0.15048396,95265.0,95264.0,0.008]
[1733129671668,0.15048396,95265.0,95264.0,0.003]
[1733129671906,0.15148396,95265.0,95264.0,0.009]
[1733129672161,0.15148396,95265.0,95264.0,0.0098626]
[1733129672388,0.35432917,95265.0,95264.0,0.00086261]
[1733129672621,0.45101797,95265.0,95264.0,0.0008626]
[1733129672858,0.45101797,95265.0,95264.0,0.0058626]
[1733129673097,0.45101797,95265.0,95264.0,0.0088626]
[1733129673330,0.45101797,95265.0,95264.0,0.0038626]
[1733129673551,0.45201797,95265.0,95264.0,0.0098626]
[1733129673781,0.45201797,95265.0,95264.0,0.0068626]
[1733129674489,0.209967,95253.0,95237.0,0.00782901]
[1733129674743,0.1,95260.0,95224.0,0.01385866]
[1733129674744,0.21,95238.0,95224.0,0.01385866]
[1733129674994,0.0023112,95237.0,95219.0,0.00782901]
[1733129675264,0.210006,95235.0,95221.0,0.01403636]
[1733129675497,0.210006,95235.0,95220.0,0.00782901]
[1733129675498,0.210011,95233.0,95220.0,0.00782901]
[1733129675714,0.00758052,95232.0,95221.0,0.00782901]
[1733129675948,0.00758052,95232.0,95217.0,0.210046]
[1733129675949,0.00758052,95232.0,95218.0,0.00782901]
[1733129676191,0.00758052,95232.0,95217.0,0.210046]
[1733129676192,0.210015,95231.0,95219.0,0.00782901]
[1733129676440,0.0023112,95230.0,95220.0,0.00782901]
[1733129676677,0.0023112,95230.0,95221.0,0.00782901]
[1733129676909,0.00526687,95229.0,95220.0,0.00782901]
[1733129677165,0.0023112,95228.0,95221.0,0.21786601]
[1733129677412,0.0023112,95228.0,95222.0,0.00782901]
[1733129677627,0.0023112,95228.0,95219.0,0.00059733]
[1733129677628,0.0023112,95228.0,95220.0,0.00782901]
[1733129677885,0.02063226,95223.0,95221.0,0.21786601]
[1733129678108,0.02063226,95223.0,95222.0,0.00782901]
[1733129679298,0.02063226,95223.0,95222.0,0.11067422]
[1733129679512,0.0023112,95233.0,95222.0,0.11067422]
[1733129679746,0.02091175,95224.0,95223.0,0.32070722]
[1733129680186,0.02091175,95224.0,95223.0,0.00782901]
[1733129680430,0.02091175,95224.0,95222.0,0.002]
[1733129680670,0.02091175,95224.0,95223.0,0.00782901]
[1733129681374,0.02491175,95224.0,95223.0,0.21786201]
[1733129682280,0.02491175,95224.0,95223.0,0.00782901]
[1733129682492,0.03091175,95224.0,95223.0,0.21786201]
[1733129682966,0.02091175,95224.0,95223.0,0.21786201]
[1733129683201,0.02091175,95224.0,95223.0,0.21886201]
[1733129683635,0.02091175,95224.0,95223.0,0.32070722]
[1733129684097,0.02991175,95224.0,95223.0,0.32070722]
[1733129684557,0.02391175,95224.0,95223.0,0.32070722]
[1733129684772,0.03091175,95224.0,95223.0,0.32070722]
[1733129685203,0.01,95224.0,95223.0,0.32070722]
[1733129685413,0.003,95224.0,95223.0,0.32070722]
[1733129685653,0.005,95224.0,95223.0,0.32070722]
[1733129685862,0.0023112,95244.0,95223.0,0.11067422]
[1733129686093,0.0023112,95244.0,95237.0,0.210001]
[1733129686312,0.0023112,95244.0,95238.0,0.00782901]
[1733129686529,0.0023112,95244.0,95239.0,0.00782901]
[1733129686764,0.0023112,95244.0,95240.0,0.00782901]
[1733129686976,0.0023112,95244.0,95241.0,0.00782901]
[1733129687195,0.00520295,95243.0,95230.0,0.37536839]
[1733129687432,0.0023112,95242.0,95232.0,0.210013]
[1733129687669,0.0023112,95242.0,95233.0,0.1106847]
[1733129687881,0.0023112,95242.0,95240.0,0.005]
[1733129688110,0.02321182,95242.0,95241.0,0.00783949]
[1733129688333,0.02841538,95242.0,95241.0,0.00783949]
[1733129689207,0.02941538,95242.0,95241.0,0.00783949]
[1733129690507,0.02841538,95242.0,95241.0,0.01283949]
[1733129690731,0.02941538,95242.0,95241.0,0.01383949]
[1733129694790,0.02941538,95242.0,95241.0,0.01284558]
[1733129695020,0.14911182,95242.0,95241.0,0.01184558]
[1733129695246,0.21130872,95242.0,95241.0,0.004]
[1733129695481,0.21130872,95242.0,95241.0,0.005]
[1733129695482,0.31230872,95242.0,95241.0,0.005]
[1733129695700,0.20999752,95242.0,95241.0,0.005]
[1733129695948,0.21230872,95242.0,95241.0,0.001]
[1733129696387,0.25520134,95242.0,95241.0,0.004]
[1733129696603,0.25520134,95242.0,95241.0,0.003]
[1733129696604,0.25189014,95242.0,95241.0,0.003]
[1733129696814,0.25189014,95242.0,95240.0,0.0008628]
[1733129697044,0.2123042,95241.0,95240.0,0.0008628]
[1733129697254,0.209993,95241.0,95240.0,0.0008628]
[1733129697492,0.21504352,95241.0,95240.0,0.0008628]
[1733129699125,0.33804352,95241.0,95240.0,0.0008628]
[1733129699809,0.33804352,95241.0,95240.0,0.0018628]
[1733129699810,0.7389519,95241.0,95240.0,0.0018628]
[1733129700241,0.7389519,95241.0,95204.0,0.0008607]
[1733129700242,0.210053,95214.0,95204.0,0.0008607]
[1733129700458,0.1310112,95213.0,95204.0,0.0008607]
[1733129700703,0.13601592,95213.0,95204.0,0.0008607]
[1733129701798,0.13701592,95213.0,95212.0,0.0018624]
[1733129702036,0.41685871,95213.0,95212.0,0.0018624]
[1733129702292,0.41454751,95213.0,95212.0,0.0018624]
[1733129702505,0.51454751,95213.0,95212.0,0.0018624]
[1733129702722,0.43754993,95213.0,95212.0,0.0018624]
[1733129703231,0.43654993,95213.0,95212.0,0.0038624]
[1733129703444,0.44154993,95213.0,95212.0,0.0038624]
[1733129703669,0.43654993,95213.0,95212.0,0.0008624]
[1733129704111,0.44254993,95213.0,95212.0,0.0008624]
[1733129704362,0.52620091,95213.0,95212.0,0.0008624]
[1733129704591,0.52420091,95213.0,95212.0,0.0008624]
[1733129704832,0.52920091,95213.0,95212.0,0.0008624]
[1733129705049,0.42920091,95213.0,95212.0,0.0008624]
[1733129705264,0.54549691,95213.0,95212.0,0.0008624]
[1733129705511,0.3285,95208.0,95204.0,0.0008607]
[1733129705758,0.43134521,95208.0,95204.0,0.0008607]
[1733129706002,0.2469,95205.0,95204.0,0.0008607]
[1733129706244,0.42954521,95205.0,95204.0,0.0008607]
[1733129706475,0.42954521,95205.0,95168.0,0.0008631]
[1733129706476,0.1,95181.0,95168.0,0.0008631]
[1733129706722,0.210152,95169.0,95168.0,0.0008631]
[1733129706943,0.21748905,95169.0,95168.0,0.00104237]
[1733129707167,0.21517785,95169.0,95168.0,0.00104237]
[1733129707387,0.34187785,95169.0,95168.0,0.00104237]
[1733129707623,0.54472306,95169.0,95168.0,0.00104237]
[1733129707843,0.64472306,95169.0,95168.0,0.00104237]
[1733129708072,0.66707534,95169.0,95168.0,0.00104237]
[1733129708307,0.56807534,95169.0,95168.0,0.00204237]
[1733129709081,0.36523013,95169.0,95168.0,0.00204237]
[1733129709301,0.36423013,95169.0,95168.0,0.00204237]
[1733129709516,0.36323013,95169.0,95168.0,0.00104237]
[1733129709733,0.36423013,95169.0,95168.0,0.00104237]
[1733129710232,0.36723013,95169.0,95168.0,0.00104237]
[1733129710475,0.36323013,95169.0,95168.0,0.00104237]
[1733129711166,0.41001478,95169.0,95168.0,0.00104237]
[1733129711418,0.36323013,95169.0,95168.0,0.00104237]
[1733129711924,0.56607534,95169.0,95168.0,0.00104237]
[1733129712155,0.66607534,95169.0,95168.0,0.00104237]
[1733129712836,0.45692334,95169.0,95168.0,0.00104237]
[1733129713048,0.50561567,95169.0,95168.0,0.00104237]
[1733129713260,0.50461567,95169.0,95168.0,0.00104237]
[1733129713496,0.50161567,95169.0,95168.0,0.00104237]
[1733129713729,0.51161567,95169.0,95168.0,0.00104237]
[1733129714201,0.50161567,95169.0,95168.0,0.00104237]
[1733129714433,0.50461567,95169.0,95168.0,0.00104237]
[1733129714658,0.72176767,95169.0,95168.0,0.00104237]
[1733129715836,0.50861567,95169.0,95168.0,0.00104237]
[1733129716066,0.51361567,95169.0,95168.0,0.00104237]
[1733129716288,0.55212881,95169.0,95168.0,0.00104237]
[1733129716781,0.54512881,95169.0,95168.0,0.00104237]
[1733129716996,0.55412881,95169.0,95168.0,0.00104237]
[1733129717221,0.51561567,95169.0,95168.0,0.00104237]
[1733129717436,0.51061567,95169.0,95168.0,0.00104237]
[1733129717679,0.51061567,95169.0,95110.0,0.16535239]
[1733129717680,0.1223,95153.0,95110.0,0.16535239]
[1733129717916,0.0023112,95152.0,95120.0,0.16535239]
[1733129718154,0.00721477,95152.0,95121.0,0.10284521]
[1733129718832,0.1,95145.0,95116.0,0.01571729]
[1733129719052,0.10284521,95151.0,95116.0,0.01571729]
[1733129719053,0.1,95140.0,95116.0,0.01571729]
[1733129719298,0.1,95132.0,95116.0,0.00146139]
[1733129719528,0.1,95129.0,95116.0,0.00146139]
[1733129719758,0.10995413,95128.0,95116.0,0.00146139]
[1733129720209,0.0207491,95117.0,95116.0,0.00146139]
[1733129720663,0.02550743,95117.0,95116.0,0.00146139]
[1733129721143,0.02781863,95117.0,95116.0,0.00146139]
[1733129721374,0.23066384,95117.0,95116.0,0.00146139]
[1733129721676,0.49905902,95117.0,95116.0,0.00146139]
[1733129722130,0.3243,95109.0,95061.0,0.0819]
[1733129722364,0.43188347,95109.0,95108.0,0.00104248]
[1733129722599,0.43188347,95109.0,95050.0,4e-05]
[1733129722600,0.1,95090.0,95050.0,4e-05]
[1733129722824,0.210363,95074.0,95072.0,0.00099564]
[1733129723086,0.0023112,95073.0,95072.0,0.00099564]
[1733129723318,0.00694163,95073.0,95072.0,0.00099564]
[1733129724040,0.0256103,95073.0,95072.0,0.00099564]
[1733129724484,0.02097987,95073.0,95072.0,0.00099564]
[1733129724714,0.02097987,95073.0,95072.0,0.21136164]
[1733129725808,0.02097987,95073.0,95072.0,0.20636164]
[1733129726020,0.0023112,95085.0,95072.0,0.20636164]
[1733129726253,0.0023112,95094.0,95077.0,0.210354]
[1733129726470,0.21032,95093.0,95077.0,0.210354]
[1733129726687,0.0023112,95092.0,95077.0,0.420709]
[1733129726921,0.2126352,95092.0,95077.0,0.210354]
[1733129727126,0.02096935,95078.0,95077.0,0.210354]
[1733129728345,0.02296935,95078.0,95077.0,0.210354]
[1733129728576,0.02096935,95078.0,95077.0,0.210354]
[1733129729005,0.02196935,95078.0,95077.0,0.210354]
[1733129729261,0.02196935,95078.0,95067.0,0.0141253]
[1733129729477,0.0023112,95077.0,95068.0,0.58610239]
[1733129729708,0.00694731,95077.0,95073.0,0.210362]
[1733129729920,0.0023112,95077.0,95068.0,0.16535239]
[1733129730159,0.0023112,95077.0,95070.0,0.21037]
[1733129730831,0.0063112,95077.0,95070.0,0.21037]
[1733129731046,0.0023112,95077.0,95070.0,0.21037]
[1733129731251,0.0033112,95077.0,95070.0,0.21037]
[1733129731477,0.0033112,95077.0,95068.0,0.16535239]
[1733129731744,0.0033112,95077.0,95067.0,0.0001781]
[1733129732185,0.420718,95076.0,95067.0,0.0001781]
[1733129732408,0.420718,95076.0,95067.0,0.0010418]
[1733129732409,0.0023112,95075.0,95067.0,0.0010418]
[1733129732638,0.210362,95074.0,95067.0,0.0010418]
[1733129732861,0.210366,95072.0,95067.0,0.0010418]
[1733129733074,0.0023112,95071.0,95067.0,0.0010418]
[1733129734000,0.210356,95077.0,95067.0,0.0010418]
[1733129734265,0.2126702,95076.0,95067.0,0.0010418]
[1733129734966,0.2126702,95076.0,95060.0,0.16535239]
[1733129734967,0.210362,95074.0,95060.0,0.06639419]
[1733129735181,0.0023112,95073.0,95060.0,0.06645689]
[1733129736089,0.02096935,95078.0,95072.0,0.20284521]
[1733129738884,0.0454,95126.0,95114.0,0.210272]
[1733129739123,0.0454,95126.0,95119.0,0.210261]
[1733129739404,0.0454,95126.0,95120.0,0.210259]
[1733129739622,0.0454,95126.0,95115.0,0.210271]
[1733129740262,0.0454,95126.0,95111.0,0.21028]
[1733129740475,0.0212665,95121.0,95111.0,0.21028]
[1733129741968,0.0212665,95121.0,95110.0,0.16535239]
[1733129742198,0.0212665,95121.0,95116.0,0.210268]
[1733129743250,0.0212665,95121.0,95114.0,0.210272]
[1733129744111,0.0212665,95121.0,95116.0,0.001]
[1733129744351,0.0229951,95121.0,95117.0,0.210267]
[1733129745003,0.0229951,95121.0,95114.0,0.211272]
[1733129746750,0.0229951,95121.0,95120.0,0.21026]
[1733129748561,0.0017286,95121.0,95120.0,0.21026]
[1733129748784,0.0017286,95121.0,95120.0,0.22538143]
[1733129749011,0.0017286,95121.0,95120.0,0.21126]
[1733129749959,0.0037286,95121.0,95120.0,0.21126]
[1733129750206,0.0017286,95121.0,95116.0,0.31346111]
[1733129750435,0.0027286,95121.0,95113.0,0.210275]
[1733129750678,0.0047286,95121.0,95113.0,0.22396345]
[1733129750924,0.0037286,95121.0,95113.0,0.22396345]
[1733129751139,0.0037286,95121.0,95108.0,0.52374711]
[1733129751379,0.21026,95120.0,95102.0,0.31346111]
[1733129751603,0.0047286,95121.0,95102.0,0.31346111]
[1733129751604,0.210262,95119.0,95102.0,0.01395328]
[1733129751837,0.210262,95119.0,95101.0,0.210302]
[1733129752059,0.0037286,95121.0,95101.0,0.210302]
[1733129752060,0.210275,95114.0,95101.0,0.210302]
[1733129752289,0.210265,95118.0,95101.0,0.210302]
[1733129752506,0.210278,95112.0,95100.0,4e-05]
[1733129753860,0.10284521,95118.0,95100.0,4e-05]
[1733129754075,0.10284521,95118.0,95101.0,0.210302]
[1733129754320,0.002,95112.0,95101.0,0.420604]
[1733129754548,0.003,95112.0,95101.0,0.420604]
[1733129754791,0.003,95112.0,95106.0,0.21029]
[1733129755026,0.002,95112.0,95106.0,0.21029]
[1733129755489,0.02129564,95107.0,95106.0,0.21029]
[1733129756189,0.02129564,95107.0,95102.0,0.2103]
[1733129756430,0.02129564,95107.0,95104.0,0.210296]
[1733129756639,0.02129564,95107.0,95104.0,0.52343721]
[1733129757063,0.0017286,95121.0,95115.0,0.210271]
[1733129757298,0.0017286,95121.0,95116.0,0.10284521]
[1733129757541,0.02148501,95117.0,95116.0,0.10284521]
[1733129758910,0.02148501,95117.0,95111.0,0.210279]
[1733129759133,0.02063487,95117.0,95111.0,0.0140946]
[1733129759593,0.02063487,95117.0,95116.0,0.003]
[1733129759594,0.02163487,95117.0,95116.0,0.003]
[1733129759802,0.02163487,95117.0,95106.0,0.42058]
[1733129759803,0.02063487,95117.0,95106.0,0.42058]
[1733129760014,0.02063487,95117.0,95106.0,0.21029]
[1733129760294,0.02263487,95117.0,95116.0,0.002]
[1733129760526,0.02063487,95117.0,95116.0,0.002]
[1733129760738,0.06893487,95117.0,95116.0,0.002]
[1733129760956,0.06893487,95117.0,95101.0,0.420604]
[1733129761172,0.06893487,95117.0,95106.0,0.002]
[1733129761465,0.0824,95116.0,95106.0,0.002]
[1733129761708,0.210283,95110.0,95100.0,4e-05]
[1733129762127,0.210272,95115.0,95100.0,4e-05]
[1733129762333,0.210273,95114.0,95100.0,4e-05]
[1733129762547,0.210289,95108.0,95100.0,4e-05]
[1733129762791,0.210276,95113.0,95100.0,4e-05]
[1733129763233,0.210288,95108.0,95100.0,4e-05]
[1733129763696,0.210288,95108.0,95106.0,0.002]
[1733129764148,0.211288,95108.0,95100.0,4e-05]
[1733129764387,0.210298,95104.0,95100.0,4e-05]
[1733129764623,0.210291,95107.0,95100.0,4e-05]
[1733129765301,0.420587,95105.0,95100.0,4e-05]
[1733129765731,0.1318,95104.0,95078.0,0.420706]
[1733129765963,0.210312,95097.0,95080.0,0.210349]
[1733129766183,0.210312,95097.0,95080.0,0.10284521]
[1733129766681,0.210313,95096.0,95078.0,0.01372848]
[1733129766920,0.210326,95091.0,95078.0,0.01372848]
[1733129767155,0.210313,95096.0,95074.0,0.21036]
[1733129767373,0.210313,95096.0,95076.0,0.210358]
[1733129767587,0.02082375,95083.0,95073.0,0.0008643]
[1733129768038,0.02082375,95083.0,95073.0,0.2112273]
[1733129768516,0.02082375,95083.0,95073.0,0.0008643]
[1733129769241,0.02082375,95083.0,95073.0,0.0028643]
[1733129769714,0.02082375,95083.0,95073.0,0.2142273]
[1733129769946,0.126,95082.0,95073.0,0.0028643]
[1733129770165,0.02382375,95083.0,95081.0,0.210346]
[1733129770379,0.02082375,95083.0,95080.0,0.210347]
[1733129770595,0.02082375,95083.0,95080.0,0.31319221]
[1733129770807,0.02182375,95083.0,95080.0,0.10284521]
[1733129771457,0.02282375,95083.0,95080.0,0.10284521]
[1733129771676,0.02282375,95083.0,95075.0,0.210359]
[1733129771903,0.02182375,95083.0,95077.0,0.01419378]
[1733129772135,0.02082375,95083.0,95080.0,0.001]
[1733129772372,0.210346,95081.0,95080.0,0.001]
[1733129772596,0.210346,95081.0,95073.0,0.0008643]
[1733129772597,0.210349,95080.0,95073.0,0.0008643]
[1733129773071,0.210362,95074.0,95073.0,0.0008643]
[1733129773286,0.1253,95082.0,95073.0,0.0008643]
[1733129773771,0.210346,95081.0,95073.0,0.0008643]
[1733129773983,0.1253,95082.0,95073.0,0.0008643]
[1733129774193,0.001,95080.0,95074.0,0.210362]
[1733129774454,0.001,95080.0,95076.0,0.210358]
[1733129774652,0.001,95080.0,95076.0,0.31320321]
[1733129775534,0.001,95081.0,95076.0,0.10284521]
[1733129775979,0.00017859,95082.0,95076.0,0.10284521]
[1733129776430,0.00017859,95082.0,95076.0,0.002]
[1733129777738,0.00017859,95082.0,95077.0,0.210355]
[1733129778202,0.00017859,95082.0,95073.0,0.0008643]
[1733129778203,0.00017859,95082.0,95074.0,0.210362]
[1733129778454,0.00017859,95082.0,95076.0,0.001]
[1733129778662,0.00117859,95082.0,95077.0,0.210355]
[1733129778872,0.00017859,95082.0,95074.0,0.210362]
[1733129779096,0.00017859,95082.0,95077.0,0.002]
[1733129779313,0.00117859,95082.0,95077.0,0.002]
[1733129779557,0.1276,95081.0,95073.0,0.0008643]
[1733129779774,0.210361,95075.0,95073.0,0.0008643]
[1733129780677,0.0829,95074.0,95073.0,0.0008643]
[1733129781756,0.0829,95074.0,95073.0,0.0018643]
[1733129782233,0.0829,95074.0,95073.0,0.0008643]
[1733129782447,0.0829,95074.0,95073.0,0.0018643]
[1733129782874,0.0829,95074.0,95073.0,0.0008643]
[1733129783099,0.00017859,95082.0,95081.0,0.20993255]
[1733129783320,0.00017859,95082.0,95081.0,0.31277776]
[1733129783985,0.00017859,95082.0,95074.0,0.420724]
[1733129784197,0.00017859,95082.0,95076.0,0.210358]
[1733129784427,0.00017859,95082.0,95076.0,0.420716]
[1733129785837,0.00017859,95082.0,95076.0,0.422716]
[1733129785838,0.00117859,95082.0,95076.0,0.422716]
[1733129786093,0.00017859,95082.0,95076.0,0.420716]
[1733129786536,0.00117859,95082.0,95076.0,0.423716]
[1733129786756,0.00117859,95082.0,95076.0,0.424716]
[1733129787248,0.00017859,95082.0,95080.0,0.1]
[1733129787484,0.00017859,95082.0,95081.0,2.55725121]
[1733129787728,0.00017859,95082.0,95081.0,2.68119121]
[1733129787978,0.00017859,95082.0,95081.0,2.65953121]
[1733129787979,0.00117859,95082.0,95081.0,2.65953121]
[1733129788211,0.00017859,95082.0,95081.0,2.65953121]
[1733129788697,0.00117859,95082.0,95081.0,2.65953121]
[1733129788909,0.00117859,95082.0,95081.0,2.67342158]
[1733129789123,0.00217859,95082.0,95081.0,2.67542158]
[1733129789335,0.00317859,95082.0,95081.0,2.67842158]
[1733129789600,0.00317859,95082.0,95081.0,2.13189858]
[1733129789843,0.00217859,95082.0,95081.0,1.85777658]
[1733129790051,0.00017859,95082.0,95081.0,1.95277658]
[1733129790260,0.00117859,95082.0,95081.0,1.95277658]
[1733129791842,0.00417859,95082.0,95081.0,1.95277658]
[1733129792062,0.00417859,95082.0,95081.0,0.31673558]
[1733129792357,0.00417859,95082.0,95081.0,2.00999358]
[1733129793716,5.9e-07,95089.0,95088.0,0.410331]
[1733129793962,5.9e-07,95089.0,95088.0,0.51317621]
[1733129794424,5.9e-07,95089.0,95088.0,0.59157621]
[1733129794639,0.0017282,95098.0,95097.0,0.410311]
[1733129794904,0.0017282,95098.0,95097.0,1.49336721]
[1733129795105,0.0017282,95098.0,95097.0,0.84099821]
[1733129795982,0.0017282,95098.0,95097.0,0.84399821]
[1733129796429,0.0017282,95098.0,95097.0,0.86080313]
[1733129797754,0.0017282,95098.0,95097.0,0.65049213]
[1733129798673,0.0017282,95098.0,95097.0,0.64449213]
[1733129798906,0.0017282,95098.0,95097.0,0.65149213]
[1733129799812,0.0017282,95098.0,95097.0,0.86180313]
[1733129801035,2e-07,95099.0,95098.0,0.2]
[1733129801271,2e-07,95109.0,95108.0,0.410287]
[1733129801505,2e-07,95109.0,95108.0,0.51313221]
[1733129802172,2e-07,95109.0,95108.0,0.55753221]
[1733129802428,2e-07,95109.0,95108.0,0.63973221]
[1733129803070,0.049,95149.0,95108.0,0.63973221]
[1733129803283,8e-07,95121.0,95120.0,0.2781]
[1733129803496,0.00018025,95121.0,95120.0,0.38094521]
[1733129803723,2.5e-07,95121.0,95120.0,0.38094521]
[1733129805098,2.5e-07,95121.0,95120.0,0.20384521]
[1733129805316,2.5e-07,95121.0,95120.0,0.20487012]
[1733129805533,2.5e-07,95121.0,95120.0,0.1195075]
[1733129805747,2.5e-07,95121.0,95120.0,0.11975323]
[1733129806175,0.00185798,95129.0,95128.0,0.210243]
[1733129806388,0.00185798,95129.0,95128.0,0.31308821]
[1733129808042,0.00485798,95129.0,95128.0,0.31308821]
[1733129812011,0.00475798,95129.0,95128.0,0.31308821]
[1733129812482,0.00475798,95129.0,95128.0,0.81764621]
[1733129812712,0.00475798,95129.0,95128.0,0.53860821]
[1733129812955,0.00475798,95129.0,95128.0,0.31308821]
[1733129813954,0.00175798,95129.0,95128.0,0.31308821]
[1733129814184,0.00475798,95129.0,95128.0,0.31308821]
[1733129814421,0.00175798,95129.0,95128.0,0.31308821]
[1733129814681,0.00675798,95129.0,95128.0,0.31308821]
[1733129814896,0.210245,95127.0,95120.0,0.00017945]
[1733129815122,0.210245,95127.0,95080.0,0.16553212]
[1733129815123,0.1233,95108.0,95080.0,0.16553212]
[1733129815360,0.1233,95107.0,95082.0,0.10284521]
[1733129815573,0.0768,95104.0,95082.0,0.10284521]
[1733129816017,0.210261,95120.0,95082.0,0.10284521]
[1733129816018,0.1267,95091.0,95082.0,0.1037727]
[1733129816253,0.1267,95091.0,95082.0,0.10284521]
[1733129816488,0.1267,95091.0,95081.0,0.01511208]
[1733129816489,0.1267,95091.0,95081.0,0.0008642]
[1733129816947,0.1267,95091.0,95082.0,0.210344]
[1733129817160,0.1267,95091.0,95081.0,0.0068642]
[1733129817419,0.1267,95091.0,95081.0,0.00104279]
[1733129817631,0.1267,95091.0,95083.0,0.210341]
[1733129817855,0.1267,95091.0,95084.0,0.10284521]
[1733129818068,0.1277,95091.0,95084.0,0.10284521]
[1733129818290,0.1267,95091.0,95084.0,0.10284521]
[1733129818504,0.1267,95091.0,95084.0,0.10276578]
[1733129818724,0.1267,95091.0,95084.0,0.31310578]
[1733129818939,0.1267,95091.0,95084.0,0.10276578]
[1733129819155,0.1267,95091.0,95084.0,0.10576578]
[1733129819593,0.1267,95091.0,95085.0,0.210338]
[1733129819813,0.1267,95091.0,95085.0,0.31318321]
[1733129820027,0.1267,95091.0,95084.0,0.003]
[1733129820028,0.1277,95091.0,95087.0,0.420666]
[1733129820300,0.1267,95091.0,95088.0,0.10284521]
[1733129820793,0.1267,95091.0,95089.0,0.210329]
[1733129821004,0.1267,95091.0,95090.0,0.10284521]
[1733129821237,0.1277,95091.0,95090.0,0.10284521]
[1733129821471,0.1267,95091.0,95084.0,0.001]
[1733129821693,0.1267,95091.0,95085.0,0.10284521]
[1733129822175,0.1267,95091.0,95089.0,0.003]
[1733129822406,0.1267,95091.0,95090.0,0.10284521]
[1733129823968,0.1267,95091.0,95090.0,0.10684521]
[1733129824659,0.1267,95091.0,95090.0,0.10984521]
[1733129824913,0.02097246,95095.0,95091.0,0.210324]
[1733129825123,0.02097246,95095.0,95092.0,0.10284521]
[1733129825352,0.0763,95101.0,95094.0,0.210318]
[1733129825573,0.0763,95101.0,95100.0,0.210304]
[1733129825793,0.0461,95104.0,95100.0,0.52345321]
[1733129826003,0.0461,95104.0,95102.0,0.2103]
[1733129826239,0.0461,95104.0,95103.0,0.10284521]
[1733129827549,0.0481,95104.0,95103.0,0.10284521]
[1733129827756,0.0471,95104.0,95103.0,0.10284521]
[1733129827996,0.0491,95104.0,95103.0,0.10284521]
[1733129828219,0.0481,95104.0,95103.0,0.10284521]
[1733129828650,0.0491,95104.0,95103.0,0.10284521]
[1733129829078,0.0481,95104.0,95103.0,0.10284521]
[1733129829603,0.0461,95104.0,95103.0,0.10284521]
[1733129829853,0.0481,95104.0,95103.0,0.10284521]
[1733129830065,0.002,95104.0,95103.0,0.10284521]
[1733129830498,0.0037284,95104.0,95103.0,0.10284521]
[1733129830759,0.0047284,95104.0,95103.0,0.1038324]
[1733129831225,0.0017284,95104.0,95103.0,0.1038324]
[1733129831463,0.0017284,95104.0,95103.0,0.1048324]
[1733129831693,0.0017284,95104.0,95103.0,0.10641399]
[1733129831931,0.0017284,95104.0,95103.0,0.10541399]
[1733129832421,0.0017284,95104.0,95103.0,0.10841399]
[1733129832884,0.0017284,95104.0,95103.0,0.10741399]
[1733129833137,0.0017284,95104.0,95103.0,0.11241399]
[1733129833981,0.0017284,95104.0,95103.0,0.11084521]
[1733129834202,0.0017284,95104.0,95103.0,0.11152938]
[1733129834665,0.0017284,95104.0,95103.0,0.11270602]
[1733129835112,0.0017284,95104.0,95103.0,0.61165502]
[1733129835340,0.0017284,95104.0,95103.0,0.60979421]
[1733129835560,0.0017284,95104.0,95103.0,0.70979421]
[1733129835798,0.0017284,95104.0,95103.0,0.89279421]
[1733129837216,0.0017284,95104.0,95103.0,0.88979421]
[1733129837434,0.0017284,95104.0,95103.0,0.88579421]
[1733129837651,0.0027284,95104.0,95103.0,0.88579421]
[1733129838087,0.0027284,95104.0,95103.0,0.88479421]
[1733129838318,0.0037284,95104.0,95103.0,0.88479421]
[1733129840540,0.0037284,95104.0,95103.0,0.38584521]
[1733129840759,0.0037284,95104.0,95103.0,2.11466721]
[1733129841228,4e-07,95109.0,95108.0,0.2]
[1733129841443,4e-07,95109.0,95108.0,0.30284521]
[1733129842352,0.002,95119.0,95118.0,0.410265]
[1733129842596,0.002,95119.0,95118.0,1.91558821]
[1733129842809,0.002,95119.0,95118.0,1.94983321]
[1733129843677,0.00217932,95119.0,95118.0,1.94983321]
[1733129843887,0.00317932,95119.0,95118.0,1.88950721]
[1733129844850,3.2e-07,95119.0,95118.0,1.88950721]
[1733129845058,3.2e-07,95119.0,95118.0,0.52711021]
[1733129845294,3.2e-07,95119.0,95118.0,0.5411998]
[1733129845527,3.2e-07,95119.0,95118.0,0.6215998]
[1733129845739,3.2e-07,95119.0,95118.0,0.6661998]
[1733129846005,0.0778,95151.0,95128.0,0.410243]
[1733129846006,0.0022539,95129.0,95128.0,0.410243]
[1733129848920,9e-07,95129.0,95128.0,0.52696769]
[1733129849392,9e-07,95139.0,95138.0,0.41022]
[1733129849609,9e-07,95139.0,95138.0,0.51306521]
[1733129850773,9e-07,95139.0,95138.0,0.51406521]
[1733129851488,9e-07,95139.0,95138.0,0.51506521]
[1733129851707,9e-07,95139.0,95138.0,0.52932942]
[1733129853898,9e-07,95139.0,95138.0,0.60742942]
[1733129855064,9e-07,95139.0,95138.0,0.60829132]
[1733129855328,7e-07,95149.0,95148.0,0.410198]
[1733129855540,7e-07,95149.0,95148.0,0.51304321]
[1733129856420,1e-07,95153.0,95152.0,0.2]
[1733129856633,1e-07,95153.0,95152.0,0.30388483]
[1733129856853,1e-07,95153.0,95152.0,0.30284521]
[1733129857733,0.002,95159.0,95158.0,0.410176]
[1733129857734,1e-07,95159.0,95158.0,0.410176]
[1733129857951,1e-07,95159.0,95158.0,0.51302121]
[1733129859143,4e-07,95159.0,95158.0,0.51302121]
[1733129859353,4e-07,95159.0,95158.0,0.59052121]
[1733129859561,4e-07,95169.0,95168.0,0.410154]
[1733129859775,4e-07,95179.0,95178.0,0.410132]
[1733129859986,4e-07,95179.0,95178.0,0.51297721]
[1733129860199,7.7e-07,95179.0,95178.0,0.51297721]
[1733129861461,7.7e-07,95189.0,95188.0,0.41011]
[1733129861672,7.7e-07,95189.0,95188.0,0.51295521]